[Event "Norwegian Team Championship 2019"]
[Site "Drammen"]
[Date "2019.06.02"]
[Round "5.16"]
[White "Stokhaug, Jon Arne"]
[Black "Juriloo, Karl"]
[Result "0-1"]
[ECO "D37"]
[WhiteElo "1833"]
[BlackElo "1978"]
[Annotator "NA"]
[PlyCount "136"]
[EventDate "2019.05.30"]
[EventType "swiss"]
[EventCountry "NOR"]
[SourceTitle "playchess.com"]
[Source "ChessBase"]
[SourceQuality "1"]
[TimeControl "40/5400:1800"]

1. Nf3 {[%emt 0:00:07]} d5 {[%emt 0:09:41]} 2. d4 {[%emt 0:00:15]} Nf6 {[%emt 0:00:25]} 3. c4 {[%emt 0:00:28]} e6 {[%emt 0:00:33]} 4. e3 {[%emt 0:02:08]} Be7 {[%emt 0:01:09]} 5. Nc3 {[%emt 0:00:50]} a6 {[%emt 0:00:55]} (5... O-O 6. b3 c5 7. Bb2 cxd4 8. Nxd4 a6 9. a3 dxc4 10. Bxc4 b5 11. Be2 Bb7 12. Bf3 Qb6 13. Bxb7 Qxb7 14. Qf3 Qxf3 15. gxf3 Rc8 16. Ke2 {½-½ (16) Andreikin,D (2719)-Matlakov,M (2700) St Petersburg 2018}) 6. b3 {[%emt 0:05:51] D37: Queen's Gambit Declined: 5 Bf4} O-O {[%emt 0:00:20]} 7. Bd3 {[%emt 0:00:12]} c5 {[%emt 0:02:20]} 8. dxc5 {[%emt 0:04:18]} dxc4 $146 {[%emt 0:01:15]} ({Predecessor:} 8... Bxc5 9. O-O dxc4 10. Bxc4 b5 11. Be2 Qe7 12. Bb2 Bb7 13. Rc1 Nc6 14. Qc2 Ba3 {0-1 (38) Gazioglu,H (1890)-Yilmaz,G (2165) Antalya 2017}) 9. bxc4 {[%emt 0:02:12]} Nbd7 {[%emt 0:00:41]} 10. Qc2 {[%emt 0:07:57]} Nxc5 {[%emt 0:02:42]} 11. Be2 $1 {[%emt 0:00:13]} Qc7 {[%emt 0:05:24]} 12. O-O {[%emt 0:06:23]} Bd7 {[%emt 0:05:41]} 13. Bb2 {[%emt 0:02:50]} Rfc8 {[%emt 0:00:47]} 14. Rac1 {[%emt 0:03:59]} Rab8 {[%emt 0:07:52]} 15. Nd4 {[%emt 0:02:47]} Bf8 {[%emt 0:04:53]} 16. h3 {[%emt 0:05:14]} e5 {[%emt 0:12:14]} 17. Nf3 {[%emt 0:02:55]} Bc6 {[%emt 0:02:48]} 18. Nd5 {[%emt 0:08:30]} Nxd5 {[%emt 0:10:31]} 19. cxd5 {[%emt 0:00:17]} Ba4 {[%emt 0:08:08]} 20. Qf5 {[%emt 0:01:52]} f6 {[%emt 0:02:48]} 21. Bd3 {[%emt 0:05:11]} g6 {[%emt 0:02:22]} 22. Qg4 {[%emt 0:06:17]} Qd7 {[%emt 0:00:24]} 23. Qxd7 {[%emt 0:02:25]} Bxd7 {[%emt 0:00:09]} 24. Bc4 {[%emt 0:00:40]} b5 {[%emt 0:00:21]} 25. Bb3 {[%emt 0:00:52]} Bd6 {[%emt 0:00:06]} 26. Rfd1 {[%emt 0:01:26]} a5 {[%emt 0:00:02]} 27. Bc2 {[%emt 0:00:57]} Kf7 {[%emt 0:00:12]} 28. Ne1 {[%emt 0:00:26]} Ke7 {[%emt 0:01:09]} 29. Nd3 {[%emt 0:00:23]} Nxd3 {[%emt 0:00:06]} 30. Bxd3 {[%emt 0:00:11]} Bb4 {[%emt 0:00:27]} ({Better is} 30... a4 31. Rxc8 Rxc8) 31. Kf1 {[%emt 0:01:24]} Kd6 {[%emt 0:00:03]} 32. f4 {[%emt 0:00:49]} Bc5 {[%emt 0:00:31]} 33. Ke2 {[%emt 0:00:13]} exf4 {[%emt 0:00:15]} 34. exf4 {[%emt 0:00:23]} Rf8 {[%emt 0:00:25]} 35. Kf3 {[%emt 0:01:06]} Rbe8 {[%emt 0:00:15]} 36. Be4 {[%emt 0:02:32]} Rxe4 {[%emt 0:00:20]} 37. Kxe4 {[%emt 0:00:08]} Re8+ {[%emt 0:00:08]} 38. Kd3 {[%emt 0:00:39]} Bf5+ {[%emt 0:00:01]} 39. Kd2 {[%emt 0:01:40]} Be3+ {[%emt 0:00:22]} 40. Kc3 {[%emt 0:00:11]} Rc8+ {[%emt 0:00:14]} 41. Kb3 {[%emt 0:30:12]} Bxc1 {[%emt 0:30:38]} 42. Rxc1 {[%emt 0:01:38]} Rxc1 {[%emt 0:00:00]} 43. Bxc1 {[%emt 0:00:00]} Be4 {[%emt 0:00:00]} 44. g3 {[%emt 0:00:00]} Bxd5+ {[%emt 0:00:00]} 45. Kb2 {[%emt 0:00:00]} Bg2 {[%emt 0:00:00]} 46. h4 $17 {[%emt 0:00:00]} Kd5 {[%emt 0:00:00]} 47. Bd2 {[%emt 0:00:00]} a4 {[%emt 0:00:00]} 48. a3 {[%emt 0:00:00]} Ke4 {[%emt 0:00:00]} 49. Ba5 {[%emt 0:00:00]} Kf3 {[%emt 0:00:00]} 50. Be1 {[%emt 0:00:00]} f5 {[%emt 0:00:00]} 51. Kc2 {[%emt 0:00:00]} Ke2 {[%emt 0:00:00]} 52. Bb4 {[%emt 0:00:00]} Kf2 {[%emt 0:00:00]} 53. Kd3 {[%emt 0:00:00]} Kxg3 {[%emt 0:00:00]} 54. Ke3 {[%emt 0:00:00]} Kxh4 {[%emt 0:00:00]} 55. Be1+ {[%emt 0:00:00]} Kg4 {[%emt 0:00:00]} 56. Bd2 {[%emt 0:00:00]} Bd5 {[%emt 0:00:00]} 57. Kf2 {[%emt 0:00:00]} h6 {[%emt 0:00:00]} 58. Kg1 {[%emt 0:00:00]} Kf3 {[%emt 0:00:00]} 59. Kf1 {[%emt 0:00:00]} Bc4+ {[%emt 0:00:00]} 60. Kg1 {[%emt 0:00:00]} Kg4 {[%emt 0:00:00]} 61. Kf2 {[%emt 0:00:00]} g5 {[%emt 0:00:00]} 62. fxg5 {[%emt 0:00:00]} hxg5 {[%emt 0:00:00]} 63. Kg2 {[%emt 0:00:00]} f4 {[%emt 0:00:00]} 64. Kf2 {[%emt 0:00:00]} Kf5 {[%emt 0:00:00]} 65. Bc3 {[%emt 0:00:00]} Ke4 {[%emt 0:00:00]} 66. Ba5 {[%emt 0:00:00]} g4 {[%emt 0:00:00]} 67. Bc7 {[%emt 0:00:00]} b4 {[%emt 0:00:00]} 68. axb4 {[%emt 0:00:00]} a3 {[%emt 0:00:00]} 0-1

[Event "Norwegian Team Championship 2019"]
[Site "Drammen"]
[Date "2019.06.02"]
[Round "5.17"]
[White "Moen, Ole Christian"]
[Black "Abdrlauf, Elham"]
[Result "0-1"]
[ECO "C02"]
[WhiteElo "2237"]
[BlackElo "2231"]
[Annotator "ChessBase"]
[PlyCount "64"]
[EventDate "2019.05.30"]
[EventType "swiss"]
[EventCountry "NOR"]
[SourceTitle "playchess.com"]
[Source "ChessBase"]
[SourceQuality "1"]
[TimeControl "40/5400:1800"]

1. e4 {[%emt 0:00:04]} e6 {[%emt 0:00:04]} 2. d4 {[%emt 0:00:05]} d5 {[%emt 0:00:04]} 3. e5 {[%emt 0:00:04]} c5 {[%emt 0:00:03]} 4. c3 {[%emt 0:00:06]} Nc6 {[%emt 0:00:04]} 5. Nf3 {[%emt 0:00:07]} Qb6 {[%emt 0:00:06]} 6. Na3 {[%emt 0:00:10]} cxd4 {[%emt 0:05:11]} 7. cxd4 {[%emt 0:00:36]} Nge7 {[%emt 0:05:19]} 8. Nc2 {[%emt 0:11:34]} Bd7 {[%emt 0:06:05]} 9. Bd3 {[%emt 0:01:19]} Rc8 {[%emt 0:00:58]} 10. O-O {[%emt 0:00:39]} Na5 {[%emt 0:02:55]} 11. b3 {[%emt 0:00:50]} Bb5 {[%emt 0:06:01]} 12. Ba3 {[%emt 0:00:48]} Bxd3 {[%emt 0:11:45]} 13. Qxd3 {[%emt 0:00:53]} Nf5 {[%emt 0:01:26]} 14. Bxf8 {[%emt 0:00:08]} Kxf8 {[%emt 0:00:03]} 15. Ne3 {[%emt 0:00:24]} g6 {[%emt 0:09:00]} 16. Ng4 {[%emt 0:14:21]} Kg7 {[%emt 0:02:04]} 17. Nf6 {[%emt 0:00:18]} Nc6 {[%emt 0:02:55]} 18. Rad1 {[%emt 0:00:15]} h5 {[%emt 0:03:04]} 19. Rd2 {[%emt 0:05:36]} Nb4 {[%emt 0:01:32]} 20. Qb1 {[%emt 0:02:10]} Rc3 {[%emt 0:00:27]} 21. Rc1 {[%emt 0:00:51]} Rhc8 {[%emt 0:01:05]} 22. Rxc3 {[%emt 0:01:08]} Rxc3 {[%emt 0:00:10]} 23. h3 {[%emt 0:03:47]} Qc6 {[%emt 0:01:46]} 24. Kh2 {[%emt 0:01:39]} b6 {[%emt 0:11:16]} 25. Qd1 {[%emt 0:02:17]} h4 {[%emt 0:02:34]} 26. Ne1 {[%emt 0:04:42]} Rc1 {[%emt 0:00:16]} 27. Qe2 {[%emt 0:00:14]} Qc3 {[%emt 0:01:40]} 28. a3 {[%emt 0:05:13]} Qa1 {[%emt 0:00:40]} 29. g4 {[%emt 0:01:15]} Rxe1 {[%emt 0:00:53]} 30. Qf3 {[%emt 0:01:09]} Nxd4 {[%emt 0:00:36]} 31. Nh5+ {[%emt 0:00:18]} Kf8 {[%emt 0:00:02]} 32. Rxd4 {[%emt 0:00:18]} Qxd4 {[%emt 0:00:14]} 0-1

[Event "Norwegian Team Championship 2019"]
[Site "Drammen"]
[Date "2019.06.02"]
[Round "5.18"]
[White "Melaa, Sondre"]
[Black "Johnsen, Sylvia"]
[Result "1-0"]
[ECO "E18"]
[WhiteElo "2038"]
[BlackElo "1888"]
[Annotator "NA"]
[PlyCount "111"]
[EventDate "2019.05.30"]
[EventType "swiss"]
[EventCountry "NOR"]
[SourceTitle "playchess.com"]
[Source "ChessBase"]
[SourceQuality "1"]
[TimeControl "40/5400:1800"]

1. d4 {[%emt 0:00:06]} d5 {[%emt 0:00:59]} 2. c4 {[%emt 0:00:37]} e6 {[%emt 0:01:33]} 3. Nf3 {[%emt 0:00:20]} Nf6 {[%emt 0:00:04]} 4. g3 {[%emt 0:00:12]} b6 {[%emt 0:07:53]} 5. Bg2 {[%emt 0:05:11]} Bb7 {[%emt 0:00:10]} 6. O-O {[%emt 0:05:54]} Be7 {[%emt 0:03:53]} 7. cxd5 {[%emt 0:01:22]} exd5 {[%emt 0:00:07]} 8. Nc3 {[%emt 0:00:50]} O-O {[%emt 0:00:17]} 9. Bf4 {[%emt 0:04:13]} Ne4 {[%emt 0:13:50]} 10. Rc1 {[%emt 0:04:21]} c5 {[%emt 0:02:34] E18: Queen's Indian: Old Main Line (4 g3 Bb7 5 Bg2 Be7 6 0-0 0-0 7 Nc3)} 11. dxc5 {[%emt 0:07:36]} Bxc5 {[%emt 0:00:51]} ({Black should try} 11... Nxc3 $1 $14 12. Rxc3 Bxc5) 12. Nb5 $146 {[%emt 0:01:42]} ({White should play Predecessor:} 12. Nxe4 $16 dxe4 13. Ng5 Qe7 14. b4 Rd8 15. Qa4 Bd6 16. Bxd6 Qxg5 17. Rc7 b5 18. Qc2 Rxd6 19. Rxb7 {1-0 (27) Romanov,E (2573)-Royset,P (2234) Norway 2015}) 12... Na6 {[%emt 0:01:38]} 13. a3 {[%emt 0:03:51]} Kh8 {[%emt 0:06:28]} ({Black should try} 13... Qd7 $14 14. Nfd4 Bxd4 15. Nxd4 Rac8) 14. b4 {[%emt 0:02:27]} Be7 {[%emt 0:01:48]} 15. Qd3 {[%emt 0:01:33]} g5 {[%emt 0:02:46]} 16. Be5+ {[%emt 0:06:27]} Bf6 {[%emt 0:01:34]} 17. Bxf6+ {[%emt 0:11:51]} Qxf6 {[%emt 0:00:07]} 18. Nc7 {[%emt 0:00:19]} Nxc7 {[%emt 0:00:19]} 19. Rxc7 {[%emt 0:00:07]} Rab8 {[%emt 0:00:07]} 20. Qd4 {[%emt 0:03:15]} Qxd4 {[%emt 0:01:17]} 21. Nxd4 {[%emt 0:00:06]} a5 {[%emt 0:00:32]} 22. Rfc1 {[%emt 0:02:20]} axb4 {[%emt 0:01:12]} 23. axb4 {[%emt 0:00:15]} Bc8 {[%emt 0:00:57]} 24. Re7 {[%emt 0:05:43]} Nf6 {[%emt 0:02:19]} 25. Rcc7 {[%emt 0:01:44]} Kg8 {[%emt 0:00:51]} 26. h3 {[%emt 0:02:23]} Ra8 {[%emt 0:01:17]} 27. Rc6 {[%emt 0:04:44]} Kg7 {[%emt 0:10:35]} 28. Rxb6 {[%emt 0:00:09]} Rd8 {[%emt 0:01:01]} 29. Nf3 {[%emt 0:00:59]} g4 {[%emt 0:02:54]} 30. Ne5 {[%emt 0:01:34]} Rf8 {[%emt 0:01:09]} 31. hxg4 {[%emt 0:00:44]} Ra1+ {[%emt 0:00:07]} 32. Kh2 {[%emt 0:00:15]} Bxg4 {[%emt 0:00:31]} 33. Rbb7 {[%emt 0:01:54]} Bh5 {[%emt 0:00:09]} 34. Bf3 {[%emt 0:00:36]} Bg6 {[%emt 0:00:48]} 35. b5 {[%emt 0:01:27]} Rb1 {[%emt 0:03:09]} 36. b6 {[%emt 0:00:28]} Rb5 {[%emt 0:00:39]} 37. Kg2 {[%emt 0:00:59]} h6 {[%emt 0:01:09]} 38. g4 {[%emt 0:00:20]} Rb4 {[%emt 0:00:58]} 39. Kg3 {[%emt 0:00:14]} Ng8 {[%emt 0:07:00]} 40. Red7 {[%emt 0:00:28]} Nf6 {[%emt 0:00:07]} 41. Rd6 {[%emt 0:03:06]} Rb5 {[%emt 0:01:40]} 42. Rc7 {[%emt 0:09:01]} Be4 {[%emt 0:04:18]} 43. Rxf6 {[%emt 0:06:26]} Kxf6 {[%emt 0:00:26]} 44. Nd7+ {[%emt 0:00:06]} Kg7 {[%emt 0:00:03]} 45. Nxf8 {[%emt 0:00:07]} Kxf8 {[%emt 0:01:03]} 46. Bxe4 {[%emt 0:00:17]} dxe4 {[%emt 0:00:11]} 47. b7 {[%emt 0:00:06]} Kg7 {[%emt 0:00:12]} 48. Kf4 {[%emt 0:00:07]} Rb4 {[%emt 0:01:51]} 49. Kf5 {[%emt 0:02:17]} Rb5+ {[%emt 0:01:24]} 50. Kxe4 {[%emt 0:00:12]} Kf6 $18 {[%emt 0:00:31]} 51. Kd4 {[%emt 0:00:29]} Rb1 {[%emt 0:00:40]} 52. f4 {[%emt 0:01:16]} Rb2 {[%emt 0:01:10]} 53. Kd5 {[%emt 0:00:13]} Rd2+ {[%emt 0:03:25]} 54. Kc6 {[%emt 0:00:15]} Rc2+ {[%emt 0:00:05]} 55. Kd7 {[%emt 0:00:06]} Rd2+ {[%emt 0:00:11]} 56. Kc8 {[%emt 0:00:06]} 1-0

[Event "Norwegian Team Championship 2019"]
[Site "Drammen"]
[Date "2019.06.02"]
[Round "5.19"]
[White "Edakina, Anastasia"]
[Black "Tunsjo, Axel"]
[Result "0-1"]
[ECO "B26"]
[WhiteElo "1697"]
[BlackElo "2002"]
[Annotator "NA"]
[PlyCount "100"]
[EventDate "2019.05.30"]
[EventType "swiss"]
[EventCountry "NOR"]
[SourceTitle "playchess.com"]
[Source "ChessBase"]
[SourceQuality "1"]
[TimeControl "40/5400:1800"]

1. e4 {[%emt 0:00:02]} c5 {[%emt 0:00:08]} 2. g3 {[%emt 0:00:05]} Nc6 {[%emt 0:00:23]} 3. Bg2 {[%emt 0:00:07]} g6 {[%emt 0:00:30]} 4. d3 {[%emt 0:00:15]} Bg7 {[%emt 0:00:10]} 5. Nc3 {[%emt 0:00:30]} e6 {[%emt 0:02:23]} 6. Be3 {[%emt 0:00:33]} d6 {[%emt 0:00:07]} 7. Nge2 {[%emt 0:02:11]} Nge7 {[%emt 0:00:17]} 8. Qd2 {[%emt 0:03:02]} Nd4 {[%emt 0:03:47]} 9. Nd1 {[%emt 0:04:26]} O-O {[%emt 0:04:27]} 10. c3 {[%emt 0:01:41] B26: Closed Sicilian: 3 g3, lines with early Be3} Nxe2 {[%emt 0:02:23]} 11. Qxe2 {[%emt 0:00:15]} Nc6 {[%emt 0:00:12]} 12. O-O {[%emt 0:01:54]} b6 {[%emt 0:00:14]} 13. f4 {[%emt 0:03:01]} Ba6 {[%emt 0:07:15]} 14. Nf2 $146 {[%emt 0:07:18]} ({Predecessor:} 14. f5 Ne5 15. c4 b5 16. fxe6 fxe6 17. Rxf8+ Qxf8 18. Rc1 bxc4 19. dxc4 {1-0 (35) Khademi,M (2280)-Valizadeh,A (2202) Hamadan 2012}) 14... Rc8 {[%emt 0:06:46]} 15. Qf3 {[%emt 0:07:33]} Qe7 {[%emt 0:22:02]} 16. Rfd1 {[%emt 0:05:33]} Rfd8 {[%emt 0:01:01]} 17. Rac1 {[%emt 0:06:03]} Rc7 {[%emt 0:01:14]} 18. h4 {[%emt 0:11:12]} Re8 {[%emt 0:10:16]} 19. h5 {[%emt 0:01:59]} b5 {[%emt 0:00:25]} 20. g4 {[%emt 0:00:37]} e5 {[%emt 0:05:14]} 21. f5 {[%emt 0:01:18]} g5 {[%emt 0:00:23]} 22. h6 {[%emt 0:07:44]} Bxh6 {[%emt 0:06:28]} 23. f6 {[%emt 0:02:27]} Qe6 {[%emt 0:00:04]} 24. Bh3 {[%emt 0:05:22]} Kh8 {[%emt 0:03:22]} 25. Rf1 {[%emt 0:02:10]} b4 {[%emt 0:00:19]} 26. c4 {[%emt 0:01:38]} Bc8 {[%emt 0:00:20]} 27. Nh1 {[%emt 0:00:29]} Rg8 {[%emt 0:00:15]} 28. Ng3 {[%emt 0:00:33]} Rg6 {[%emt 0:00:04]} 29. Nh5 {[%emt 0:01:27]} Nd8 {[%emt 0:01:02]} 30. Rf2 {[%emt 0:00:06]} Qd7 {[%emt 0:00:37]} 31. Kh2 {[%emt 0:00:33]} Ne6 {[%emt 0:00:07]} 32. Rg1 {[%emt 0:00:34]} Nf4 {[%emt 0:00:28]} 33. Bc1 {[%emt 0:01:13]} Qe6 {[%emt 0:00:40]} 34. Rg3 {[%emt 0:02:26]} Rc6 {[%emt 0:00:55]} 35. b3 {[%emt 0:01:02]} a5 {[%emt 0:00:25]} 36. Qd1 {[%emt 0:00:36]} Ra6 {[%emt 0:00:19]} 37. a3 {[%emt 0:00:58]} Bf8 {[%emt 0:01:33]} 38. a4 {[%emt 0:00:05]} Rh6 {[%emt 0:00:11]} 39. Bxf4 {[%emt 0:00:47]} exf4 {[%emt 0:00:54]} 40. Rgf3 {[%emt 0:00:07] [#]} Rxh5 $1 {[%emt 0:02:05]} 41. gxh5 {[%emt 0:00:08]} g4 {[%emt 0:00:13] Double Attack} 42. Rxf4 {[%emt 0:03:40]} g3+ {[%emt 0:00:08]} 43. Kg1 {[%emt 0:02:40]} gxf2+ {[%emt 0:00:04]} 44. Rxf2 {[%emt 0:00:06]} Qxh3 {[%emt 0:00:05]} 45. Qd2 {[%emt 0:00:25]} Qxh5 {[%emt 0:02:25]} 46. Rh2 {[%emt 0:00:16]} Bh6 {[%emt 0:00:40]} 47. Qe1 {[%emt 0:00:28]} Qg5+ {[%emt 0:00:23]} 48. Rg2 {[%emt 0:01:13]} Qe3+ {[%emt 0:00:26]} 49. Qxe3 {[%emt 0:00:10]} Bxe3+ {[%emt 0:00:04]} 50. Kf1 {[%emt 0:00:06] [#]} Bh3 {[%emt 0:00:06]} 0-1

[Event "Norwegian Team Championship 2019"]
[Site "Drammen"]
[Date "2019.06.02"]
[Round "5.20"]
[White "Sidali, Elias Hulleberg"]
[Black "Mrachek, Svetlana"]
[Result "1-0"]
[ECO "C11"]
[WhiteElo "1953"]
[BlackElo "1538"]
[Annotator "NA"]
[PlyCount "79"]
[EventDate "2019.05.30"]
[EventType "swiss"]
[EventCountry "NOR"]
[SourceTitle "playchess.com"]
[Source "ChessBase"]
[SourceQuality "1"]
[TimeControl "40/5400:1800"]

{[%evp 8,76,25,2,-1,9,5,0,-1,0,0,-31,32767,-38,32767,32767,32767,14,44,52,32767,58,251,158,149,149,150,32767,170,17,32767,32767,32767,174,479,32767,32767,32767,539,536,568,32767,385,32767,32767,32767,32767,545,32767,32767,516,32767,32767,32767,32767,32767,533,485,32767,758,32767,32767,810,917,1377,32767,32767,32767,32767,29970,29971]} 1. e4 {[%emt 0:00:03]} e6 {[%emt 0:00:04]} 2. d4 {[%emt 0:00:05]} d5 {[%emt 0:00:01]} 3. Nd2 {[%emt 0:00:09]} Nf6 {[%emt 0:00:07]} 4. e5 {[%emt 0:00:06]} Nfd7 {[%emt 0:00:02]} 5. Ne2 {[%emt 0:00:07]} c5 {[%emt 0:00:06]} 6. c3 {[%emt 0:00:04]} Nc6 {[%emt 0:00:16]} 7. Nf3 {[%emt 0:00:13]} Be7 {[%emt 0:02:38]} 8. g3 {[%emt 0:02:12]} O-O {[%emt 0:03:52] C11: French: Classical System: 4 e5 and 4 Bg5 dxe4} 9. Bh3 {[%emt 0:00:07]} b5 {[%emt 0:05:26]} 10. O-O {[%emt 0:00:50]} Qb6 $146 {[%emt 0:09:44]} ({Predecessor:} 10... b4 11. Nf4 Nb6 12. Kg2 bxc3 13. bxc3 Nc4 14. Qa4 Qb6 15. dxc5 Qa6 16. Qxa6 Bxa6 {½-½ (114) Ponomariov,R (2764)-Ni,H (2662) Khanty-Mansiysk 2011}) 11. Be3 {[%emt 0:01:48]} c4 {[%emt 0:01:19]} 12. b3 {[%emt 0:04:53]} cxb3 {[%emt 0:03:23]} 13. axb3 {[%emt 0:00:11]} a5 {[%emt 0:00:32]} 14. Nf4 {[%emt 0:02:19]} Ba6 $2 {[%emt 0:05:45]} (14... Qb7 $16 {is a better defense.}) 15. Nxd5 {[%emt 0:02:45]} exd5 {[%emt 0:01:50]} 16. Bxd7 {[%emt 0:00:02]} b4 {[%emt 0:02:06]} 17. c4 {[%emt 0:01:35]} Qc7 {[%emt 0:03:09] [#]} 18. cxd5 $2 {[%emt 0:00:15]} ({White must play} 18. e6 $1 $18) 18... Nxd4 {[%emt 0:02:30]} 19. Qxd4 {[%emt 0:07:07]} Bxf1 {[%emt 0:00:15]} 20. d6 {[%emt 0:00:11]} ({Not} 20. Rxf1 Qxd7 21. d6 Bd8 $14) (20. Bf5 $142 Be2 21. d6 {[%mdl 64] Double Attack}) 20... Bxd6 $2 {[%emt 0:03:41]} (20... Qxd7 21. dxe7 (21. Kxf1 Bd8 $14) 21... Qxe7) 21. Qxd6 {[%emt 0:01:39]} Qxd6 {[%emt 0:04:00]} 22. exd6 {[%emt 0:00:02]} Be2 {[%emt 0:03:58]} 23. Nd4 {[%emt 0:01:05]} Rad8 {[%emt 0:04:52]} 24. Nxe2 {[%emt 0:00:08]} Rxd7 {[%emt 0:00:20]} 25. Bc5 {[%emt 0:02:08]} Ra8 {[%emt 0:01:21]} 26. Bxb4 {[%emt 0:00:12]} Re8 {[%emt 0:01:37]} 27. Rxa5 {[%emt 0:00:20]} f6 {[%emt 0:01:28]} 28. Nd4 {[%emt 0:00:28]} Kf7 {[%emt 0:01:14]} 29. Bc5 {[%emt 0:00:26]} Re5 {[%emt 0:03:15]} 30. b4 {[%emt 0:00:07]} Rd5 {[%emt 0:01:31]} 31. Nc6 {[%emt 0:00:15]} Ke6 {[%emt 0:01:21]} 32. Ra7 {[%emt 0:00:10]} R5xd6 {[%emt 0:05:16]} 33. Bxd6 {[%emt 0:00:13]} Rxd6 {[%emt 0:00:04]} 34. b5 {[%emt 0:00:09]} Kd5 {[%emt 0:02:08]} 35. Rxg7 {[%emt 0:00:10]} Ke4 {[%emt 0:00:48]} 36. Rg4+ {[%emt 0:00:13]} Kd5 {[%emt 0:00:52]} 37. Rd4+ {[%emt 0:00:06]} Ke6 {[%emt 0:00:14]} 38. Rxd6+ {[%emt 0:00:08]} Kxd6 {[%emt 0:00:07]} 39. Nd4 {[%emt 0:00:14]} Kc7 {[%emt 0:00:38]} 40. Kg2 {[%emt 0:00:01]} 1-0

[Event "Norwegian Team Championship 2019"]
[Site "Drammen"]
[Date "2019.06.02"]
[Round "6.2"]
[White "Hauge, Lars Oskar"]
[Black "Risting, Eivind Olav"]
[Result "1-0"]
[ECO "A03"]
[WhiteElo "2470"]
[BlackElo "2357"]
[Annotator "ChessBase"]
[PlyCount "67"]
[EventDate "2019.05.30"]
[EventType "swiss"]
[EventCountry "NOR"]
[SourceTitle "playchess.com"]
[Source "ChessBase"]
[SourceQuality "1"]
[TimeControl "40/5400:1800"]

1. f4 {[%emt 0:00:56]} d5 {[%emt 0:00:27]} 2. Nf3 {[%emt 0:00:05]} Nf6 {[%emt 0:01:34]} 3. g3 {[%emt 0:00:10]} c6 {[%emt 0:02:42]} 4. Bg2 {[%emt 0:00:23]} Qb6 {[%emt 0:00:06]} 5. e3 {[%emt 0:01:52]} g6 {[%emt 0:00:12]} 6. O-O {[%emt 0:02:45]} Bg7 {[%emt 0:00:19]} 7. Nc3 {[%emt 0:06:31]} O-O {[%emt 0:01:46]} 8. d3 {[%emt 0:02:18]} a5 {[%emt 0:09:05]} 9. Kh1 {[%emt 0:02:00]} a4 {[%emt 0:01:24]} 10. a3 {[%emt 0:00:18]} c5 {[%emt 0:22:09]} 11. e4 {[%emt 0:02:04]} d4 {[%emt 0:03:43]} 12. Ne2 {[%emt 0:00:10]} Nc6 {[%emt 0:00:23]} 13. h3 {[%emt 0:00:17]} Qd8 {[%emt 0:05:48]} 14. g4 {[%emt 0:00:52]} b5 {[%emt 0:02:06]} 15. f5 {[%emt 0:01:37]} Nd7 {[%emt 0:05:30]} 16. Qe1 {[%emt 0:02:45]} Ra6 {[%emt 0:02:44]} 17. Qg3 {[%emt 0:01:14]} c4 {[%emt 0:07:59]} 18. Bf4 {[%emt 0:00:28]} Bb7 {[%emt 0:01:15]} 19. h4 {[%emt 0:01:06]} cxd3 {[%emt 0:01:58]} 20. cxd3 {[%emt 0:00:08]} Nc5 {[%emt 0:00:23]} 21. Rad1 {[%emt 0:00:12]} e5 {[%emt 0:06:34]} 22. Bc1 {[%emt 0:01:24]} Nb3 {[%emt 0:01:07]} 23. g5 {[%emt 0:00:10]} Nxc1 {[%emt 0:00:37]} 24. Rxc1 {[%emt 0:00:04]} gxf5 {[%emt 0:00:14]} 25. exf5 {[%emt 0:00:41]} f6 {[%emt 0:01:26]} 26. Nd2 {[%emt 0:00:26]} Na5 {[%emt 0:00:08]} 27. Bxb7 {[%emt 0:01:03]} Nxb7 {[%emt 0:00:01]} 28. Ne4 {[%emt 0:00:07]} Kh8 {[%emt 0:00:38]} 29. Qg4 {[%emt 0:01:21]} Qe8 {[%emt 0:05:07]} 30. N2g3 {[%emt 0:02:54]} Nd6 {[%emt 0:00:02]} 31. Rc7 {[%emt 0:01:09]} Nxe4 {[%emt 0:00:56]} 32. Nxe4 {[%emt 0:00:06]} Rc6 {[%emt 0:00:12]} 33. Rxg7 {[%emt 0:00:24]} Kxg7 {[%emt 0:00:02]} 34. gxf6+ {[%emt 0:00:07]} 1-0